fUST/lending_fUST_20250918
["ID","MTS","AMOUNT","RATE_DAILY","PERIOD"]
[386068532,1758209442687,-370000.0,0.00027269,2]
[386068533,1758209442697,-500.0,0.00027273,2]
[386068534,1758209442706,-300.0,0.00027273,2]
[386068535,1758209442716,-150.0,0.00027273,2]
[386068536,1758209442725,-168.0,0.00027295,2]
[386068537,1758209442735,-168.0,0.00027322,2]
[386068538,1758209442746,-1488.3861332,0.00027394,7]
[386068539,1758209442755,-168.0,0.00027415,2]
[386068540,1758209442765,-168.0,0.00027467,2]
[386068541,1758209442775,-1249.65,0.000275,7]
[386068542,1758209442785,-719.91,0.00027506,3]
[386068543,1758209442794,-480.0,0.00027506,3]
[386068544,1758209442804,-961.07,0.00027507,3]
[386068545,1758209442814,-2027.48,0.00027508,3]
[386068546,1758209442823,-168.0,0.00027508,2]
[386068547,1758209442833,-480.0,0.00027511,3]
[386068548,1758209442842,-1656.39743087,0.00027616,5]
[386068549,1758209442852,-508.93493663,0.00027616,5]
[386068550,1758209442861,-860.0,0.00027729,2]
[386068551,1758209442871,-719.91,0.0002778,3]
[386068552,1758209442881,-480.0,0.0002778,3]
[386068553,1758209442890,-961.07,0.00027781,3]
[386068554,1758209442900,-2027.48,0.00027782,3]
[386068555,1758209442910,-480.0,0.00027785,3]
[386068556,1758209442920,-250.0,0.00027821,5]
[386068557,1758209442930,-977.0,0.00027863,2]
[386068559,1758209442940,-2032.982,0.00027863,2]
[386068560,1758209442949,-410.0,0.00027863,2]
[386068562,1758209442961,-12142.68220235,0.000279,2]
[386068564,1758209442971,-3602.68715391,0.000279,2]
[386068566,1758209442981,-1000.0,0.0002799,5]
[386068568,1758209442991,-109007.54953077,0.00028,6]
[386068581,1758209443066,-53165.40986932,0.00028,6]
[386068586,1758209443125,-382.76199589,0.00028,6]
[386068588,1758209443137,-2056.92476496,0.00028,6]
[386068590,1758209443148,-2778.06221426,0.00028,6]
[386068683,1758209444448,-5020.34105925,0.00028,6]
[386068685,1758209444460,-592.73,0.00028,6]
[386068691,1758209444510,-460.0,0.00028,6]
[386068965,1758209447254,-480.0,0.00022853,3]
[386068967,1758209447264,-2529.98180751,0.00028,6]
[386069231,1758209474876,1168.1186349,0.000199,2]
[386069232,1758209475023,1168.11863471,0.00021149,2]
[386069233,1758209475132,1168.11863471,0.00022398,2]
[386069234,1758209584718,5864.5808877,0.00022092,2]
[386069238,1758209662264,1123.42145631,0.000199,2]
[386069239,1758209662368,1123.42145608,0.00021149,2]
[386069240,1758209662494,1123.42145608,0.00022398,2]
[386069242,1758209703188,11483.01937806,0.0002115,2]
[386069243,1758209727193,278.272957,0.00022094,2]
[386069244,1758209833857,150.0,5e-05,10]
[386069245,1758209845882,1110.30505284,0.000199,2]
[386069246,1758209845983,1110.30505268,0.00021149,2]
[386069247,1758209846097,1110.30505268,0.00022398,2]
[386069250,1758209878202,500.0,0.00015,10]
[386069251,1758209909472,350.0,0.0002,10]
[386069254,1758210029205,999.27454747,0.000199,2]
[386069255,1758210029312,999.27454741,0.00021149,2]
[386069256,1758210029446,999.27454741,0.00022398,2]
[386069257,1758210134618,500.0,0.000224,2]
[386069259,1758210213571,899.34709293,0.000199,2]
[386069260,1758210213855,899.34709266,0.00021149,2]
[386069261,1758210213955,899.34709266,0.00022398,2]
[386069283,1758210278313,183.566255,0.00021957,2]
[386069284,1758210291275,-1200.0,0.00022848,2]
[386069285,1758210291303,-941.0,0.00022848,2]
[386069286,1758210291332,-300.0,0.00022848,2]
[386069287,1758210291360,-480.0,0.00022849,3]
[386069288,1758210291388,-480.0,0.00022849,3]
[386069289,1758210291417,-480.0,0.00022849,3]
[386069290,1758210291448,-480.0,0.00022849,3]
[386069291,1758210291477,-482.00226032,0.00022849,3]
[386069292,1758210296075,-376.8345545,0.00022849,3]
[386069293,1758210296105,-480.0,0.00022849,3]
[386069294,1758210296135,-480.0,0.00022849,3]
[386069295,1758210296167,-480.0,0.00022849,3]
[386069296,1758210296196,-480.0,0.00022849,3]
[386069297,1758210296228,-480.0,0.00022851,3]
[386069298,1758210296257,-480.0,0.00022852,2]
[386069299,1758210296288,-480.0,0.00022852,3]
[386069300,1758210296317,-160.0,0.00022852,3]
[386069301,1758210296346,-620.1916192,0.00022852,3]
[386069302,1758210296376,-480.0,0.00022852,3]
[386069303,1758210300814,-480.0,0.00022851,3]
[386069304,1758210300844,-480.0,0.00022852,3]
[386069305,1758210300873,-480.0,0.00022852,3]
[386069306,1758210300904,-480.0,0.00022852,3]
[386069307,1758210300934,-480.0,0.00022852,3]
[386069308,1758210300965,-480.0,0.00022852,3]
[386069309,1758210300996,-480.0,0.00022852,3]
[386069310,1758210301027,-480.0,0.00022852,3]
[386069311,1758210301068,-480.0,0.00022852,3]
[386069312,1758210301104,-457.24232352,0.00022852,3]
[386069313,1758210311272,-300.0,0.00022851,2]
[386069314,1758210311307,-480.0,0.00022851,2]
[386069315,1758210311342,-601.8951967,0.00022852,3]
[386069316,1758210311376,-480.0,0.00022852,3]
[386069317,1758210311536,-480.0,0.00022852,3]
[386069318,1758210311567,-480.0,0.00022852,3]
[386069319,1758210311598,-480.0,0.00022852,3]
[386069320,1758210311628,-431.54,0.00022852,3]
[386069321,1758210311659,-480.0,0.00022852,3]
[386069322,1758210311690,-480.0,0.00022852,3]
[386069323,1758210311720,-133.1396066,0.00022852,3]
[386069324,1758210311839,-346.8603934,0.00022852,3]
[386069325,1758210311869,-480.0,0.00022852,3]
[386069326,1758210311900,-480.0,0.00022852,3]
[386069327,1758210311930,-551.69,0.00022852,3]
[386069328,1758210311959,-480.0,0.00022852,3]
[386069329,1758210311989,-480.0,0.00022852,3]
[386069330,1758210312020,-480.0,0.00022852,3]
[386069331,1758210312050,-480.0,0.00022852,3]
[386069332,1758210312081,-480.0,0.00022852,3]
[386069333,1758210312113,-480.0,0.00022852,3]
[386069334,1758210312145,-42.9092132,0.00022852,3]
[386069335,1758210321275,-480.0,0.00022851,3]
[386069336,1758210321305,-480.0,0.00022851,3]
[386069337,1758210321335,-480.0,0.00022851,3]
[386069338,1758210321366,-437.0907868,0.00022852,3]
[386069339,1758210321396,-480.0,0.00022852,3]
[386069340,1758210321441,-480.0,0.00022852,3]
[386069341,1758210321474,-480.0,0.00022852,3]
[386069342,1758210321512,-480.0,0.00022852,3]
[386069343,1758210321547,-804.44,0.00022852,3]
[386069344,1758210321579,-173.12449103,0.00022852,3]
[386069345,1758210321715,-450.69944434,0.00022852,3]
[386069346,1758210321748,-480.0,0.00022852,3]
[386069347,1758210321780,-480.0,0.00022852,3]
[386069348,1758210321810,-243.29990761,0.00022852,2]
[386069349,1758210327052,480.0,0.00022851,3]
[386069350,1758210328414,480.0,0.00022851,3]
[386069351,1758210330000,500.0,0.00022852,2]
[386069352,1758210330060,500.0,0.00022852,2]
[386069353,1758210330115,500.0,0.00022852,2]
[386069354,1758210330169,445.01713955,0.00022852,2]
[386069355,1758210330217,500.0,0.00022852,2]
[386069356,1758210330279,609.29461843,0.00022852,2]
[386069357,1758210330311,500.0,0.00022852,2]
[386069358,1758210330345,501.14318795,0.00022852,2]
[386069359,1758210330598,500.0,0.00022852,2]
[386069360,1758210330767,518.60911256,0.00022852,2]
[386069361,1758210336850,480.0,0.00022852,3]
[386069362,1758210340339,177.94723761,0.00022852,3]
[386069363,1758210340365,368.25276239,0.00022852,3]
[386069364,1758210344036,480.0,0.00022851,3]
[386069365,1758210344223,480.0,0.00022851,3]
[386069366,1758210346657,480.0,0.00022851,3]
[386069371,1758210352754,480.0,0.00022851,3]
[386069374,1758210357100,480.0,0.00022851,3]
[386069375,1758210359168,480.0,0.00022851,3]
[386069377,1758210363755,480.0,0.00022851,3]
[386069378,1758210366347,174.01,0.00022851,3]
[386069379,1758210369535,480.0,0.00022851,3]
[386069380,1758210369873,480.0,0.00022851,3]
[386069381,1758210381306,-480.0,0.00022851,3]
[386069382,1758210381337,-480.0,0.00022851,3]
[386069383,1758210382403,480.0,0.00022851,3]
[386069384,1758210385777,485.43234927,0.00022851,3]
[386069385,1758210385987,480.0,0.00022851,3]
[386069386,1758210389593,480.0,0.00022851,3]
[386069387,1758210390384,480.0,0.00022851,3]
[386069388,1758210395244,489.28991397,0.00022851,3]
[386069389,1758210396505,1508.58697203,0.000199,2]
[386069390,1758210396723,1508.58697198,0.00021149,2]
[386069391,1758210396780,480.0,0.00022851,3]
[386069392,1758210396831,1508.58697198,0.00022398,2]
[386069403,1758210401900,179.52682077,0.00022851,3]
[386069441,1758210505722,151.0,0.00027397,120]
[386069442,1758210531569,-300.0,0.0002285,2]
[386069443,1758210531601,-300.47317923,0.00022851,3]
[386069444,1758210531634,-480.0,0.00022851,3]
[386069445,1758210531669,-480.0,0.00022851,3]
[386069446,1758210531702,-480.0,0.00022851,3]
[386069447,1758210531733,-481.14941249,0.00022851,3]
[386069448,1758210531766,-480.0,0.00022851,3]
[386069449,1758210531798,-480.0,0.00022851,3]
[386069450,1758210531831,-480.0,0.00022851,3]
[386069451,1758210531863,-480.0,0.00022851,3]
[386069452,1758210531896,-480.0,0.00022851,3]
[386069453,1758210539963,-489.43,0.00022851,3]
[386069454,1758210539994,-480.0,0.00022851,3]
[386069455,1758210540025,-480.0,0.00022851,3]
[386069456,1758210540056,-480.0,0.00022851,3]
[386069457,1758210540088,-482.75098639,0.00022851,3]
[386069458,1758210540119,-480.0,0.00022851,3]
[386069459,1758210540150,-480.0,0.00022851,3]
[386069460,1758210540181,-480.0,0.00022851,3]
[386069461,1758210540212,-480.0,0.00022851,3]
[386069462,1758210540245,-480.0,0.00022851,3]
[386069463,1758210551601,-300.0,0.0002285,2]
[386069464,1758210551632,-480.0,0.00022851,3]
[386069465,1758210551664,-480.0,0.00022851,3]
[386069466,1758210551693,-480.0,0.00022851,3]
[386069467,1758210551724,-183.39,0.00022851,3]
[386069468,1758210551754,-480.0,0.00022851,3]
[386069469,1758210551783,-568.76769437,0.00022851,3]
[386069470,1758210551812,-484.59805901,0.00022851,3]
[386069471,1758210551841,-316.9109643,0.00022851,3]
[386069472,1758210551870,-486.97521712,0.00022851,3]
[386069473,1758210551899,-480.0,0.00022851,3]
[386069474,1758210551930,-38.7261304,0.00022851,3]
[386069475,1758210581987,1623.27339119,0.000199,2]
[386069476,1758210582090,1623.27339097,0.00021149,2]
[386069477,1758210582273,1623.27339097,0.00022398,2]
[386069478,1758210611660,-300.0,0.0002285,2]
[386069479,1758210611690,-300.0,0.0002285,2]
[386069480,1758210611721,-300.0,0.0002285,2]
[386069481,1758210611751,-1200.0,0.0002285,2]
[386069482,1758210611782,-1293.45826225,0.00022851,2]
[386069483,1758210620176,-3213.0934755,0.00022851,2]
[386069484,1758210620209,-441.2738696,0.00022851,3]
[386069485,1758210620241,-480.0,0.00022851,3]
[386069486,1758210620272,-480.0,0.00022851,3]
[386069487,1758210620303,-291.2753098,0.00022851,3]
[386069488,1758210631656,-188.7246902,0.00022851,3]
[386069489,1758210631692,-480.0,0.00022851,3]
[386069490,1758210631730,-480.0,0.00022851,3]
[386069491,1758210631765,-483.99890127,0.00022851,3]
[386069492,1758210631803,-480.0,0.00022851,3]
[386069493,1758210631841,-480.0,0.00022851,3]
[386069494,1758210631877,-480.0,0.00022851,3]
[386069495,1758210631910,-480.0,0.00022851,3]
[386069496,1758210631947,-480.0,0.00022851,3]
[386069497,1758210631983,-480.0,0.00022851,3]
[386069498,1758210632021,-480.0,0.00022851,3]
[386069520,1758210633251,-480.0,0.00022851,3]
[386069522,1758210633261,-480.0,0.00022851,3]
[386069524,1758210633271,-480.0,0.00022851,3]
[386069527,1758210633283,-480.0,0.00022851,3]
[386069530,1758210633293,-480.0,0.00022851,3]
[386069533,1758210633304,-480.0,0.00022851,3]
[386069535,1758210633313,-480.0,0.00022851,2]
[386069537,1758210633323,-543.39,0.00022851,3]
[386069538,1758210633332,-480.0,0.00022851,3]
[386069540,1758210633342,-480.0,0.00022852,3]
[386069543,1758210633352,-480.0,0.00022852,3]
[386069546,1758210633362,-480.0,0.00022852,3]
[386069549,1758210633372,-480.0,0.00022852,3]
[386069552,1758210633382,-321.57,0.00022852,3]
[386069554,1758210633391,-2261.61,0.00022852,3]
[386069557,1758210633401,-755.33,0.00022852,3]
[386069560,1758210633411,-480.0,0.00022852,3]
[386069563,1758210633421,-480.0,0.00022852,3]
[386069566,1758210633431,-480.0,0.00022852,3]
[386069569,1758210633440,-480.0,0.00022852,3]
[386069572,1758210633450,-480.0,0.00022852,3]
[386069574,1758210633459,-480.0,0.00022852,3]
[386069577,1758210633468,-480.0,0.00022852,3]
[386069579,1758210633478,-480.0,0.00022852,3]
[386069582,1758210633487,-480.0,0.00022852,3]
[386069586,1758210633499,-480.0,0.00022852,3]
[386069588,1758210633510,-519.55,0.00022852,3]
[386069591,1758210633521,-480.0,0.00022852,3]
[386069593,1758210633534,-500.0,0.00022852,3]
[386069595,1758210633546,-480.0,0.00022852,3]
[386069597,1758210633555,-480.0,0.00022852,3]
[386069605,1758210633677,-480.0,0.00022852,3]
[386069606,1758210633687,-480.0,0.00022852,3]
[386069607,1758210633696,-480.0,0.00022852,3]
[386069608,1758210633706,-1193.15,0.00022852,3]
[386069609,1758210633716,-274.6,0.00022852,3]
[386069610,1758210633725,-480.0,0.00022852,3]
[386069611,1758210633735,-480.0,0.00022852,3]
[386069612,1758210633744,-480.0,0.00022852,3]
[386069613,1758210633754,-72.57889852,0.00022852,3]
[386069614,1758210633766,-286.81356417,0.00022852,3]
[386069622,1758210637972,-878.73,0.00022851,3]
[386069623,1758210637982,-120.60753731,0.00022852,3]
[386069624,1758210637992,-480.0,0.00022852,3]
[386069625,1758210638001,-376.60361269,0.00022852,3]
[386069626,1758210638013,-103.39638731,0.00022852,3]
[386069627,1758210638023,-480.0,0.00022852,3]
[386069628,1758210638033,-480.0,0.00022852,3]
[386069629,1758210638042,-480.0,0.00022852,3]
[386069630,1758210638052,-480.0,0.00022852,3]
[386069631,1758210638062,-480.0,0.00022852,3]
[386069632,1758210638071,-0.97213926,0.00022852,3]
[386069633,1758210638082,-479.02786074,0.00022852,3]
[386069634,1758210638092,-480.0,0.00022852,3]
[386069635,1758210638101,-473.74149152,0.00022852,2]
[386069636,1758210638110,-504.86977798,0.00022852,3]
[386069637,1758210638120,-578.62,0.00022853,3]
[386069638,1758210638129,-480.0,0.00022853,3]
[386069639,1758210638139,-480.0,0.00022853,3]
[386069640,1758210638148,-485.27241769,0.00022853,3]
[386069641,1758210638158,-480.0,0.00022853,3]
[386069642,1758210638167,-480.0,0.00022853,3]
[386069643,1758210638177,-481.54092424,0.00022853,3]
[386069644,1758210638186,-483.25609583,0.00022853,3]
[386069645,1758210638195,-480.0,0.00022853,3]
[386069647,1758210638204,-480.0,0.00022853,3]
[386069648,1758210638214,-480.0,0.00022853,3]
[386069649,1758210638223,-483.73814685,0.00022853,3]
[386069650,1758210638233,-533.29953792,0.00022853,3]
[386069651,1758210638243,-480.0,0.00022853,3]
[386069652,1758210638253,-480.0,0.00022853,3]
[386069653,1758210638263,-480.0,0.00022853,3]
[386069654,1758210638272,-480.0,0.00022853,3]
[386069655,1758210638283,-480.0,0.00022853,3]
[386069656,1758210638293,-480.0,0.00022853,3]
[386069657,1758210638302,-480.0,0.00022853,3]
[386069658,1758210638311,-480.0,0.00022853,3]
[386069659,1758210638321,-479.61,0.00022853,3]
[386069660,1758210638330,-157.23534942,0.00022853,3]
[386069661,1758210638340,-350.86788375,0.00022853,3]
[386069662,1758210638349,-480.0,0.00022853,3]
[386069663,1758210638359,-480.0,0.00022853,3]
[386069664,1758210638368,-480.0,0.00022853,3]
[386069665,1758210638377,-480.0,0.00022853,3]
[386069666,1758210638387,-483.18616691,0.00022853,3]
[386069667,1758210638396,-480.0,0.00022853,3]
[386069668,1758210638405,-480.0,0.00022853,3]
[386069669,1758210638415,-480.0,0.00022853,3]
[386069670,1758210638424,-480.0,0.00022853,3]
[386069671,1758210638433,-480.0,0.00022853,3]
[386069672,1758210638443,-480.0,0.00022853,3]
[386069673,1758210638452,-480.0,0.00022853,3]
[386069674,1758210638461,-486.07950589,0.00022853,3]
[386069675,1758210638470,-480.0,0.00022853,3]
[386069676,1758210638479,-480.0,0.00022853,3]
[386069677,1758210638491,-480.0,0.00022853,3]
[386069678,1758210638502,-480.0,0.00022853,3]
[386069679,1758210638511,-480.0,0.00022853,3]
[386069680,1758210638521,-402.7142657,0.00022853,3]
[386069681,1758210638531,-480.0,0.00022853,3]
[386069682,1758210638542,-480.0,0.00022853,3]
[386069683,1758210638551,-480.0,0.00022853,3]
[386069684,1758210638561,-480.0,0.00022853,3]
[386069685,1758210638570,-480.0,0.00022853,3]
[386069686,1758210638581,-480.0,0.00022853,3]
[386069687,1758210638591,-480.0,0.00022853,3]
[386069688,1758210638600,-480.0,0.00022853,3]
[386069689,1758210638610,-480.0,0.00022853,3]
[386069690,1758210638620,-480.0,0.00022853,3]
[386069691,1758210638629,-492.28722216,0.00022853,3]
[386069692,1758210638639,-480.0,0.00022853,3]
[386069693,1758210638648,-480.0,0.00022853,3]
[386069694,1758210638657,-302.14428805,0.00022853,3]
[386069695,1758210638667,-480.0,0.00022853,3]
[386069696,1758210638676,-480.0,0.00022853,3]
[386069697,1758210638686,-522.3796169,0.00022853,3]
[386069698,1758210638696,-480.0,0.00022853,3]
[386069699,1758210638705,-480.0,0.00022853,3]
[386069700,1758210638715,-480.0,0.00022853,3]
[386069701,1758210638724,-480.0,0.00022853,3]
[386069702,1758210638734,-480.0,0.00022853,3]
[386069703,1758210638743,-485.96869765,0.00022853,3]
[386069704,1758210638755,-480.0,0.00022853,3]
[386069705,1758210638765,-500.0,0.00022853,3]
[386069706,1758210638774,-480.0,0.00022853,3]
[386069707,1758210638785,-480.0,0.00022853,3]
[386069708,1758210638794,-480.0,0.00022853,3]
[386069709,1758210638804,-480.0,0.00022853,3]
[386069710,1758210638813,-480.0,0.00022853,3]
[386069711,1758210638822,-480.0,0.00022853,3]
[386069712,1758210638831,-480.0,0.00022853,3]
[386069713,1758210638841,-485.91174176,0.00022853,3]
[386069714,1758210638850,-487.16989621,0.00022853,3]
[386069715,1758210638860,-480.0,0.00022853,3]
[386069716,1758210638870,-480.0,0.00022853,3]
[386069717,1758210638883,-480.0,0.00022853,3]
[386069718,1758210638898,-480.0,0.00022853,3]
[386069719,1758210638908,-480.0,0.00022853,3]
[386069720,1758210638917,-378.17148043,0.00022853,3]
[386069721,1758210638928,-480.0,0.00022853,3]
[386069722,1758210638937,-480.0,0.00022853,3]
[386069723,1758210638946,-480.0,0.00022853,3]
[386069724,1758210638956,-309.54569016,0.00022853,3]
[386069725,1758210638966,-480.0,0.00022853,3]
[386069726,1758210638975,-480.0,0.00022853,3]
[386069727,1758210638984,-480.0,0.00022853,3]
[386069728,1758210638994,-480.0,0.00022853,3]
[386069729,1758210639003,-480.0,0.00022853,3]
[386069730,1758210639012,-480.0,0.00022853,3]
[386069731,1758210639022,-480.0,0.00022853,3]
[386069732,1758210639032,-480.0,0.00022853,3]
[386069733,1758210639041,-480.0,0.00022853,3]
[386069734,1758210639051,-480.0,0.00022853,3]
[386069735,1758210639060,-480.0,0.00022853,3]
[386069736,1758210639069,-480.0,0.00022853,3]
[386069737,1758210639079,-480.0,0.00022853,3]
[386069738,1758210639088,-480.0,0.00022853,3]
[386069739,1758210639098,-480.0,0.00022853,3]
[386069740,1758210639107,-480.0,0.00022853,3]
[386069741,1758210639116,-480.0,0.00022853,3]
[386069742,1758210639126,-480.0,0.00022853,3]
[386069743,1758210639135,-246.6369528,0.00022853,3]
[386069744,1758210639145,-480.0,0.00022853,3]
[386069745,1758210639154,-480.0,0.00022853,3]
[386069746,1758210639163,-480.0,0.00022853,3]
[386069747,1758210639173,-480.0,0.00022853,3]
[386069749,1758210639183,-480.0,0.00022853,3]
[386069750,1758210639192,-480.0,0.00022853,3]
[386069751,1758210639201,-480.0,0.00022853,3]
[386069752,1758210639210,-396.11649269,0.00022853,3]
[386069753,1758210639219,-481.41228729,0.00022853,3]
[386069754,1758210639228,-480.0,0.00022853,3]
[386069755,1758210639237,-480.0,0.00022853,3]
[386069756,1758210639246,-480.0,0.00022853,3]
[386069757,1758210639256,-480.0,0.00022853,3]
[386069758,1758210639265,-481.30862865,0.00022853,3]
[386069759,1758210639275,-480.0,0.00022853,3]
[386069760,1758210639285,-480.2004721,0.00022853,3]
[386069761,1758210639295,-480.0,0.00022853,3]
[386069762,1758210639304,-480.0,0.00022853,3]
[386069763,1758210639313,-480.0,0.00022853,3]
[386069764,1758210639322,-480.0,0.00022853,3]
[386069765,1758210639331,-480.0,0.00022853,3]
[386069766,1758210639340,-483.83840608,0.00022853,3]
[386069767,1758210639349,-480.0,0.00022853,3]
[386069768,1758210639359,-480.0,0.00022853,3]
[386069769,1758210639368,-480.0,0.00022853,3]
[386069770,1758210639376,-480.0,0.00022853,3]
[386069771,1758210639386,-480.0,0.00022853,3]
[386069772,1758210639396,-480.0,0.00022853,3]
[386069773,1758210639405,-480.0,0.00022853,3]
[386069775,1758210639415,-480.0,0.00022853,3]
[386069776,1758210639424,-615.01239671,0.00022853,3]
[386069777,1758210639433,-480.0,0.00022853,3]
[386069778,1758210639442,-480.0,0.00022853,3]
[386069779,1758210639451,-507.58072675,0.00022853,3]
[386069780,1758210639460,-160.0,0.00023,3]
[386069781,1758210639469,-847.96496735,0.00023,3]
[386069782,1758210639478,-233.39271932,0.00023,3]
[386069784,1758210639488,-480.0,0.00023125,3]
[386069785,1758210639497,-480.0,0.00023125,3]
[386069786,1758210639510,-480.0,0.00023125,3]
[386069787,1758210639519,-489.30140245,0.00023125,3]
[386069788,1758210639528,-480.0,0.00023125,3]
[386069789,1758210639537,-480.0,0.00023125,3]
[386069790,1758210639547,-480.0,0.00023125,3]
[386069791,1758210639556,-480.0,0.00023125,3]
[386069792,1758210639565,-480.0,0.00023125,3]
[386069794,1758210639575,-480.0,0.00023125,3]
[386069795,1758210639584,-480.0,0.00023125,3]
[386069796,1758210639594,-480.0,0.00023125,3]
[386069797,1758210639603,-409.40557353,0.00023125,2]
[386069798,1758210639612,-253.74756842,0.00023125,2]
[386069799,1758210639621,-480.0,0.00023125,3]
[386069800,1758210639631,-480.0,0.00023125,3]
[386069801,1758210639640,-480.0,0.00023125,3]
[386069802,1758210639649,-175.45953151,0.00023125,2]
[386069803,1758210639659,-480.0,0.00023125,3]
[386069805,1758210639670,-480.0,0.00023125,3]
[386069807,1758210639679,-480.0,0.00023125,3]
[386069808,1758210639688,-480.0,0.00023125,3]
[386069809,1758210639698,-480.0,0.00023125,3]
[386069810,1758210639707,-480.0,0.00023125,3]
[386069811,1758210639716,-480.0,0.00023125,3]
[386069812,1758210639726,-543.39,0.00023125,3]
[386069813,1758210639735,-480.0,0.00023125,3]
[386069814,1758210639744,-451.29419452,0.00023126,3]
[386069815,1758210639754,-2261.61,0.00023126,3]
[386069816,1758210639764,-480.0,0.00023126,3]
[386069818,1758210639774,-226.93375854,0.00023126,3]
[386069820,1758210639784,-480.0,0.00023126,3]
[386069821,1758210639793,-480.0,0.00023126,3]
[386069822,1758210639802,-480.0,0.00023126,3]
[386069823,1758210639812,-480.0,0.00023126,3]
[386069824,1758210639821,-330.48,0.00023126,3]
[386069825,1758210639831,-480.0,0.00023126,3]
[386069826,1758210639840,-480.0,0.00023126,3]
[386069827,1758210639850,-311.04,0.00023126,3]
[386069828,1758210639859,-480.0,0.00023126,3]
[386069830,1758210639868,-1193.15,0.00023126,3]
[386069832,1758210639878,-480.0,0.00023126,3]
[386069834,1758210639887,-480.0,0.00023126,3]
[386069836,1758210639896,-480.0,0.00023126,3]
[386069838,1758210639906,-480.0,0.00023126,3]
[386069839,1758210639915,-480.0,0.00023126,3]
[386069842,1758210639925,-480.0,0.00023126,3]
[386069843,1758210639935,-480.0,0.00023126,3]
[386069845,1758210639944,-480.0,0.00023126,3]
[386069847,1758210639954,-480.0,0.00023126,3]
[386069850,1758210639963,-480.0,0.00023126,3]
[386069852,1758210639973,-480.0,0.00023126,3]
[386069853,1758210639982,-480.0,0.00023126,3]
[386069856,1758210639991,-480.0,0.00023127,3]
[386069857,1758210640000,-480.0,0.00023127,3]
[386069859,1758210640010,-480.0,0.00023127,3]
[386069861,1758210640021,-480.0,0.00023127,3]
[386069863,1758210640031,-160.0,0.00023198,2]
[386069866,1758210640040,-5214.22402542,0.000232,2]
[386069868,1758210640050,-502.88567287,0.00023273,2]
[386069870,1758210640059,-517.58938596,0.00023273,2]
[386069872,1758210640069,-500.0,0.00023273,2]
[386069873,1758210640078,-500.0,0.00023273,2]
[386069875,1758210640088,-500.0,0.00023273,2]
[386069877,1758210640097,-500.0,0.00023273,2]
[386069880,1758210640107,-500.0,0.00023273,2]
[386069881,1758210640116,-500.0,0.00023273,2]
[386069883,1758210640125,-480.0,0.00023273,2]
[386069886,1758210640134,-500.0,0.00023273,2]
[386069888,1758210640144,-500.0,0.00023273,2]
[386069890,1758210640154,-500.0,0.00023273,2]
[386069892,1758210640165,-500.0,0.00023273,2]
[386069894,1758210640177,-500.0,0.00023273,2]
[386069896,1758210640187,-500.0,0.00023273,2]
[386069898,1758210640196,-500.0,0.00023273,2]
[386069899,1758210640205,-593.05860003,0.00023273,2]